bitfinex-derivatives/quotes_BTCF0:USTF0_20230105
["timestamp","ask_amount","ask_price","bid_price","bid_amount"]
[1672941206748,0.1151,16832.0,16830.0,0.3178]
[1672941208110,0.1161,16832.0,16830.0,0.3178]
[1672941208524,0.1101,16832.0,16830.0,0.3178]
[1672941211574,0.1101,16832.0,16830.0,0.0171]
[1672941211789,0.1101,16832.0,16831.0,0.3007]
[1672941212427,0.11,16832.0,16831.0,0.3007]
[1672941213055,0.116,16832.0,16831.0,0.3057]
[1672941213485,0.116,16832.0,16831.0,0.3058]
[1672941213699,0.1161,16832.0,16831.0,0.3058]
[1672941219576,0.1161,16832.0,16831.0,0.0051]
[1672941235132,0.1161,16832.0,16831.0,0.1051]
[1672941236290,0.1161,16832.0,16831.0,0.0051]
[1672941238072,0.1161,16832.0,16831.0,0.3058]
[1672941240594,0.0161,16832.0,16831.0,0.3058]
[1672941244793,0.0161,16832.0,16831.0,0.6065]
[1672941245849,0.01589742,16832.0,16831.0,0.6065]
[1672941250264,0.01589742,16832.0,16831.0,0.7065]
[1672941252047,0.01589742,16832.0,16831.0,1.3002]
[1672941258572,0.01589742,16832.0,16831.0,0.6988]
[1672941258774,0.01589742,16832.0,16831.0,1.3002]
[1672941259726,0.01589742,16832.0,16831.0,0.7065]
[1672941259727,0.11589742,16832.0,16831.0,0.7065]
[1672941259942,0.11589742,16832.0,16831.0,0.6065]
[1672941267629,0.11589742,16832.0,16831.0,0.3058]
[1672941282538,0.11589742,16832.0,16831.0,0.0051]
[1672941282752,0.11589742,16832.0,16831.0,0.3058]
[1672941283901,0.11589742,16832.0,16831.0,0.0051]
[1672941284114,0.11589742,16832.0,16831.0,0.3058]
[1672941285484,0.38588082,16832.0,16831.0,0.3058]
[1672941285912,0.38588082,16832.0,16831.0,0.0051]
[1672941286123,0.38588082,16832.0,16831.0,0.3058]
[1672941297049,0.38588082,16832.0,16831.0,0.30567945]
[1672941299358,0.38588082,16832.0,16831.0,0.00497945]
[1672941299576,0.38588082,16832.0,16831.0,0.30567945]
[1672941310614,0.38588082,16832.0,16831.0,0.00497945]
[1672941310830,0.38588082,16832.0,16831.0,0.30567945]
[1672941318082,0.38572182,16832.0,16831.0,0.30567945]
[1672941324704,0.38572182,16832.0,16831.0,0.00497945]
[1672941328277,0.38572182,16832.0,16831.0,0.30567945]
[1672941366552,0.38572182,16832.0,16831.0,0.00497945]
[1672941368969,0.68642182,16832.0,16831.0,0.00497945]
[1672941371176,0.68642182,16832.0,16831.0,0.0049099]
[1672941374948,0.38572182,16832.0,16831.0,0.0049099]
[1672941375163,0.68642182,16832.0,16831.0,0.0049099]
[1672941376216,0.8067834,16832.0,16831.0,0.0001]
[1672941376633,0.6707834,16832.0,16831.0,0.0001]
[1672941376857,0.8067834,16832.0,16831.0,0.0001]
[1672941382624,0.5060834,16832.0,16831.0,0.0001]
[1672941391149,0.8067834,16832.0,16831.0,0.0001]
[1672941393454,0.5060834,16832.0,16831.0,0.0001]
[1672941404170,0.5060834,16832.0,16831.0,0.3008]
[1672941410901,0.5060834,16832.0,16831.0,0.0001]
[1672941418264,0.10004074,16831.0,16830.0,0.3007]
[1672941419525,0.23504074,16831.0,16830.0,0.3007]
[1672941419944,0.23504074,16831.0,16830.0,0.3008]
[1672941420150,0.23514074,16831.0,16830.0,0.3008]
[1672941441817,0.23514074,16831.0,16830.0,0.0001]
[1672941442028,0.23514074,16831.0,16830.0,0.3008]
[1672941442447,0.23514074,16831.0,16830.0,0.4008]
[1672941442663,0.23514074,16831.0,16830.0,0.3008]
[1672941444449,0.23514074,16831.0,16830.0,0.4008]
[1672941444652,0.23514074,16831.0,16830.0,0.3008]
[1672941445495,0.23514074,16831.0,16830.0,0.0001]
[1672941445907,0.23514074,16831.0,16830.0,0.3008]
[1672941454426,0.23514074,16831.0,16830.0,0.0001]
[1672941460213,0.3698834,16830.0,16829.0,0.3007]
[1672941461366,0.5038834,16830.0,16829.0,0.3007]
[1672941461778,0.5038834,16830.0,16829.0,0.3008]
[1672941462099,0.5039834,16830.0,16829.0,0.3008]
[1672941473126,0.5039834,16830.0,16829.0,0.0001]
[1672941473336,0.5039834,16830.0,16829.0,0.3008]
[1672941473968,0.5039834,16830.0,16829.0,0.0001]
[1672941474290,0.5039834,16830.0,16829.0,0.3008]
[1672941476698,0.5039834,16830.0,16829.0,0.0001]
[1672941476910,0.5039834,16830.0,16829.0,0.3008]
[1672941486053,0.5039834,16830.0,16828.0,0.1]
[1672941486054,0.5348,16830.0,16828.0,0.1]
[1672941486266,0.1,16829.0,16828.0,0.1]
[1672941487109,0.1,16829.0,16828.0,0.1001]
[1672941487317,0.1001,16829.0,16828.0,0.1001]
[1672941487732,0.1821,16829.0,16828.0,0.1011]
[1672941488150,0.1821,16829.0,16828.0,0.0011]
[1672941490055,0.1001,16829.0,16828.0,0.0001]
[1672941490252,0.2341,16829.0,16828.0,0.0001]
[1672941499192,0.2341,16829.0,16828.0,0.3008]
[1672941508216,0.1341,16829.0,16828.0,0.3008]
[1672941508646,0.1341,16829.0,16828.0,0.8945]
[1672941514531,0.1341,16829.0,16828.0,4.6645]
[1672941514951,0.1341,16829.0,16828.0,0.8945]
[1672941520735,0.1341,16829.0,16828.0,0.5938]
[1672941520953,0.1341,16829.0,16828.0,1.2952]
[1672941525250,0.1341,16829.0,16828.0,0.9945]
[1672941531245,0.1341,16829.0,16828.0,0.99442643]
[1672941536706,0.1341,16829.0,16828.0,0.30072643]
[1672941537656,0.1341,16829.0,16828.0,0.40072643]
[1672941537849,0.1341,16829.0,16828.0,0.30072643]
[1672941544996,0.1341,16829.0,16828.0,0.60142643]
[1672941559517,0.1341,16829.0,16828.0,0.40072643]
[1672941560768,0.1341,16829.0,16828.0,0.30072643]
[1672941565707,0.1341,16829.0,16828.0,2.643e-05]
[1672941576227,0.1341,16829.0,16828.0,0.30072643]
[1672941580758,0.1341,16829.0,16828.0,2.643e-05]
[1672941581915,0.10015231,16828.0,16827.0,0.4007]
[1672941583071,0.10015231,16828.0,16827.0,0.3008]
[1672941583282,0.10025231,16828.0,16827.0,0.3008]
[1672941584014,0.18025231,16828.0,16827.0,0.4008]
[1672941584638,0.18025231,16828.0,16827.0,0.3008]
[1672941584849,0.18025231,16828.0,16827.0,0.4008]
[1672941585060,0.18025231,16828.0,16827.0,0.3008]
[1672941585483,0.18025231,16828.0,16827.0,0.4008]
[1672941586952,0.18025231,16828.0,16827.0,0.1001]
[1672941587158,0.18025231,16828.0,16827.0,0.4008]
[1672941587370,0.18025231,16828.0,16827.0,0.1001]
[1672941587580,0.18025231,16828.0,16827.0,0.4008]
[1672941589477,0.18025231,16828.0,16827.0,0.1001]
[1672941589687,0.18025231,16828.0,16827.0,0.4008]
[1672941590325,0.18025231,16828.0,16827.0,0.1001]
[1672941590845,0.18025231,16828.0,16827.0,0.4008]
[1672941596310,0.18025231,16828.0,16827.0,0.3008]
[1672941596835,0.18025231,16828.0,16827.0,0.4008]
[1672941598301,0.18025231,16828.0,16827.0,0.3008]
[1672941601347,0.18025231,16828.0,16827.0,0.0001]
[1672941601559,0.18025231,16828.0,16827.0,0.3008]
[1672941605868,0.18025231,16828.0,16827.0,0.0001]
[1672941606079,0.48095231,16828.0,16827.0,0.0001]
[1672941607856,0.18025231,16828.0,16827.0,0.0001]
[1672941612380,0.18025231,16828.0,16827.0,0.3008]
[1672941612589,0.18025231,16828.0,16827.0,0.0001]
[1672941630817,0.48095231,16828.0,16827.0,0.0001]
[1672941634785,0.48095231,16828.0,16827.0,3.643e-05]
[1672941640032,0.48095231,16828.0,16827.0,0.30073643]
[1672941640033,0.18025231,16828.0,16827.0,0.30073643]
[1672941640243,0.18025231,16828.0,16827.0,3.643e-05]
[1672941660740,0.18015441,16828.0,16827.0,3.643e-05]
[1672941667159,0.1801,16828.0,16827.0,3.643e-05]
[1672941677039,0.1,16827.0,16826.0,3.68713643]
[1672941677246,0.1,16827.0,16826.0,0.3007]
[1672941678192,0.107,16827.0,16826.0,0.3018]
[1672941678400,0.1071,16827.0,16826.0,0.3018]
[1672941679028,0.1071,16827.0,16826.0,0.0011]
[1672941679347,0.1071,16827.0,16826.0,0.3018]
[1672941694798,0.1071,16827.0,16826.0,0.0011]
[1672941702780,0.1071,16827.0,16826.0,0.3018]
[1672941708980,0.1071,16827.0,16826.0,0.0011]
[1672941722018,0.1071,16827.0,16826.0,0.00101525]
[1672941724012,0.4071,16827.0,16821.0,0.7811]
[1672941724229,0.1,16822.0,16820.0,0.3007]
[1672941724421,0.1,16822.0,16819.0,0.3007]
[1672941724636,0.3007,16821.0,16819.0,0.3007]
[1672941724845,0.1,16820.0,16819.0,0.3007]
[1672941725156,0.1,16820.0,16819.0,0.3008]
[1672941726220,0.1,16820.0,16819.0,0.3007]
[1672941726749,0.1,16820.0,16819.0,0.3008]
[1672941726750,0.114,16820.0,16819.0,0.3008]
[1672941726946,0.014,16820.0,16819.0,0.3008]
[1672941727166,0.0141,16820.0,16819.0,0.3008]
[1672941730436,0.0001,16820.0,16819.0,0.3008]
[1672941730642,0.0161,16820.0,16819.0,0.3008]
[1672941733265,0.0161,16820.0,16819.0,0.8945]
[1672941740945,0.0161,16820.0,16819.0,0.0001]
[1672941741259,0.0161,16820.0,16819.0,1.1952]
[1672941743676,0.0161,16820.0,16819.0,0.6015]
[1672941747775,0.0161,16820.0,16819.0,0.0001]
[1672941748401,0.0161,16820.0,16816.0,0.3007]
[1672941748616,0.3007,16819.0,16816.0,0.3007]
[1672941748928,0.1,16818.0,16816.0,0.3007]
[1672941749341,0.1,16818.0,16816.0,0.3008]
[1672941750183,0.2341,16818.0,16816.0,0.3008]
[1672941752917,0.2341,16818.0,16816.0,0.6015]
[1672941753124,0.2341,16818.0,16816.0,0.6014]
[1672941753335,0.2341,16818.0,16817.0,0.1]
[1672941753544,0.234,16818.0,16817.0,0.1]
[1672941754180,0.1001,16818.0,16817.0,0.1]
[1672941754391,0.2341,16818.0,16817.0,0.1]
[1672941755328,0.234,16818.0,16817.0,0.1]
[1672941755549,0.234,16818.0,16816.0,0.6014]
[1672941755748,0.234,16818.0,16817.0,0.0001]
[1672941756174,0.2341,16818.0,16817.0,0.0001]
[1672941798121,0.10005531,16817.0,16816.0,0.6014]
[1672941799380,0.10005531,16817.0,16816.0,0.6015]
[1672941799801,0.10015531,16817.0,16816.0,0.6015]
[1672941800007,0.18115531,16817.0,16816.0,0.6015]
[1672941808524,0.18115531,16817.0,16816.0,0.3008]
[1672941830589,0.10015531,16817.0,16816.0,0.3008]
[1672941830905,0.23415531,16817.0,16816.0,0.3008]
[1672941831118,0.10015531,16817.0,16816.0,0.3008]
[1672941831332,0.23415531,16817.0,16816.0,0.3008]
[1672941846764,0.23415531,16817.0,16816.0,0.4008]
[1672941849174,0.13415531,16817.0,16816.0,0.4008]
[1672941851591,0.13415531,16817.0,16816.0,0.40061803]
[1672941857900,0.1341,16817.0,16816.0,0.40061803]
[1672941863273,0.1341,16817.0,16816.0,0.99431803]
[1672941871050,0.1341,16817.0,16816.0,1.2951]
[1672941881980,0.1341,16817.0,16816.0,0.6937]
[1672941882188,0.1341,16817.0,16816.0,1.2951]
[1672941896489,0.1341,16817.0,16816.0,0.6937]
[1672941896705,0.1341,16817.0,16816.0,1.2951]
[1672941898283,0.1341,16817.0,16816.0,0.6937]
[1672941898495,0.1341,16817.0,16816.0,1.2951]
[1672941900393,0.1341,16817.0,16816.0,1.29487525]
[1672941926563,0.1341,16817.0,16816.0,0.09977525]
[1672941926879,0.1341,16817.0,16816.0,1.29487525]
[1672941927089,0.1341,16817.0,16816.0,0.99417525]
[1672941927299,0.1341,16817.0,16816.0,1.29487525]
[1672941932024,0.1341,16817.0,16816.0,0.99417525]
[1672941932236,0.1341,16817.0,16816.0,1.29487525]
[1672941944843,0.1204946,16817.0,16816.0,1.29487525]
[1672941945368,0.1204946,16817.0,16816.0,1.29497525]
[1672941945577,0.1205946,16817.0,16816.0,1.29497525]
[1672941946949,0.0071,16817.0,16816.0,1.29897525]
[1672941977015,0.1371,16822.0,16821.0,1.1982]
[1672941979123,0.1261,16822.0,16821.0,1.2002]
[1672941979759,0.0901,16822.0,16821.0,1.2012]
[1672941987940,0.0901,16822.0,16821.0,0.0061]
[1672941988153,0.0901,16822.0,16821.0,1.2012]
[1672942001729,0.0901,16822.0,16821.0,0.0061]
[1672942002052,0.0901,16822.0,16821.0,1.2012]
[1672942019809,0.0901,16822.0,16821.0,1.20104903]
[1672942025803,0.09000508,16822.0,16821.0,1.20104903]
[1672942027484,0.09000508,16822.0,16821.0,0.60734903]
[1672942028531,0.09000508,16822.0,16821.0,1.20104903]
[1672942032098,0.09000508,16822.0,16821.0,0.59964903]
[1672942032314,0.09000508,16822.0,16821.0,1.20104903]
[1672942039986,0.09000508,16822.0,16821.0,0.90034903]
[1672942040309,0.09000508,16822.0,16821.0,1.20104903]
[1672942065123,0.09000508,16822.0,16821.0,1.30104903]
[1672942068587,0.02100508,16822.0,16821.0,1.2981]
[1672942070059,0.02100508,16822.0,16821.0,1.29788249]
[1672942076474,0.02100508,16822.0,16821.0,1.38692256]
[1672942077739,0.09084078,16826.0,16822.0,0.1]
[1672942077939,0.09084078,16826.0,16825.0,1.19488249]
[1672942078149,0.1,16827.0,16826.0,0.1]
[1672942080259,0.195,16827.0,16826.0,0.108]
[1672942080679,0.1,16827.0,16826.0,0.1]
[1672942080885,0.195,16827.0,16826.0,0.1081]
[1672942081416,0.1951,16827.0,16826.0,0.1081]
[1672942081627,0.0951,16827.0,16826.0,0.1081]
[1672942086255,0.0951,16827.0,16826.0,1.30298249]
[1672942088668,0.0871,16827.0,16826.0,1.30298249]
[1672942089088,0.0151,16827.0,16826.0,1.29598249]
[1672942098142,0.086033,16829.0,16827.0,0.1]
[1672942098352,0.086033,16829.0,16828.0,0.3007]
[1672942099289,0.160033,16829.0,16828.0,0.3097]
[1672942099821,0.160133,16829.0,16828.0,0.3098]
[1672942101926,0.160133,16829.0,16828.0,0.90328249]
[1672942104552,0.0741,16829.0,16828.0,0.90328249]
[1672942111070,0.0741,16829.0,16828.0,1.20398249]
[1672942133995,0.0741,16829.0,16828.0,0.60258249]
[1672942134204,0.0741,16829.0,16828.0,1.20398249]
[1672942147663,0.0741,16829.0,16828.0,1.20384556]
[1672942147979,0.0741,16832.0,16829.0,0.1]
[1672942148187,0.0741,16832.0,16831.0,0.6014]
[1672942148922,0.0741,16832.0,16831.0,0.6015]
[1672942149556,0.0741,16832.0,16831.0,0.6105]
[1672942149873,0.0742,16832.0,16831.0,0.0091]
[1672942150077,0.0742,16832.0,16831.0,0.3098]
[1672942153558,0.3742,16832.0,16831.0,0.0091]
[1672942155439,0.1,16831.0,16829.0,0.3007]
[1672942156494,0.1,16831.0,16829.0,0.3008]
[1672942156702,0.3,16830.0,16829.0,0.3008]
[1672942156914,0.3,16830.0,16826.0,0.7014]
[1672942157232,0.1,16829.0,16826.0,0.7014]
[1672942157963,0.1,16829.0,16826.0,0.7015]
[1672942158171,0.1001,16829.0,16826.0,0.6015]
[1672942158385,0.3,16828.0,16826.0,0.6015]
[1672942158597,0.1,16827.0,16826.0,0.6015]
[1672942159019,0.1,16827.0,16826.0,0.6014]
[1672942159643,0.1,16827.0,16826.0,0.6015]
[1672942159965,0.1001,16827.0,16826.0,0.6275]
[1672942160380,0.1141,16827.0,16826.0,0.6075]
[1672942162492,0.1001,16827.0,16826.0,0.6015]
[1672942162702,0.0141,16827.0,16826.0,0.6075]
[1672942165538,0.0001,16827.0,16826.0,0.6015]
[1672942165741,0.0151,16827.0,16826.0,0.6015]
[1672942166473,0.0001,16827.0,16826.0,0.6015]
[1672942166689,0.0151,16827.0,16826.0,0.6015]
[1672942169636,0.0001,16827.0,16826.0,0.6015]
[1672942169849,0.0151,16827.0,16826.0,0.6015]
[1672942172687,0.0001,16827.0,16826.0,0.6015]
[1672942173006,0.0151,16827.0,16826.0,0.6015]
[1672942176254,0.0001,16827.0,16826.0,0.6015]
[1672942176477,0.0001,16827.0,16826.0,0.6275]
[1672942186661,0.0001,16827.0,16826.0,0.0261]
[1672942186865,0.0001,16827.0,16826.0,0.6275]
[1672942189813,0.0001,16827.0,16826.0,0.7275]
[1672942199995,0.0001,16827.0,16826.0,1.3212]
[1672942206312,0.0001,16827.0,16826.0,1.32112382]
[1672942217354,0.0001,16827.0,16826.0,1.22112382]
[1672942217555,0.0001,16827.0,16826.0,0.7014]
[1672942217764,0.0001,16827.0,16826.0,1.2951]
[1672942223750,0.0001,16827.0,16826.0,0.1]
[1672942223965,0.0001,16827.0,16826.0,1.2951]
[1672942229966,0.0001,16827.0,16826.0,0.6937]
[1672942230177,0.0001,16827.0,16826.0,1.2951]
[1672942234476,0.0001,16827.0,16826.0,0.6937]
[1672942234795,0.0001,16827.0,16826.0,1.2951]
[1672942252981,0.0001,16827.0,16826.0,0.1]
[1672942253179,0.0001,16827.0,16826.0,1.2951]
[1672942259497,0.0001,16827.0,16826.0,0.7014]
[1672942260543,0.0001,16827.0,16826.0,0.6014]
[1672942260861,0.3001,16827.0,16826.0,0.6014]
[1672942262119,0.29998344,16827.0,16826.0,0.6014]
[1672942262749,0.29998344,16827.0,16826.0,0.6015]
[1672942262959,0.30008344,16827.0,16826.0,0.6015]
[1672942265064,0.0001,16827.0,16826.0,0.6015]
[1672942270214,0.0001,16827.0,16826.0,0.4008]
[1672942276630,0.0001,16827.0,16826.0,0.1001]
[1672942276951,0.0001,16827.0,16826.0,0.4008]
[1672942283990,0.0001,16827.0,16826.0,0.7015]
[1672942286096,0.0001,16827.0,16826.0,0.1001]
[1672942286407,0.0001,16827.0,16826.0,0.7015]
[1672942290611,0.0001,16827.0,16826.0,0.1001]
[1672942290824,0.0001,16827.0,16826.0,0.7015]
[1672942296507,0.0001,16827.0,16826.0,0.1001]
[1672942296820,0.0001,16827.0,16826.0,0.7015]
[1672942300918,0.0001,16827.0,16826.0,0.1001]
[1672942301124,0.0001,16827.0,16826.0,0.4008]
[1672942302612,0.0001,16827.0,16826.0,0.1001]
[1672942302917,0.0001,16827.0,16826.0,0.4008]
[1672942311961,0.0001,16827.0,16826.0,0.40073765]
[1672942316159,0.0001,16827.0,16826.0,0.10003765]
[1672942316363,0.0001,16827.0,16826.0,0.40073765]
[1672942330666,0.0001,16827.0,16826.0,0.10003765]
[1672942330981,0.0001,16827.0,16826.0,0.40073765]
[1672942334239,0.0001,16827.0,16826.0,0.10003765]
[1672942334453,0.0001,16827.0,16826.0,0.40073765]
[1672942336024,0.4007,16830.0,16827.0,4.133e-05]
[1672942336234,0.4007,16830.0,16828.0,0.1]
[1672942336447,0.4007,16830.0,16827.0,0.10004133]
[1672942336650,0.1,16830.0,16827.0,0.10004133]
[1672942336859,0.4007,16830.0,16828.0,0.0001]
[1672942337071,0.4388,16830.0,16828.0,0.0001]
[1672942338021,0.4388,16830.0,16828.0,0.0111]
[1672942342125,1.37362896,16830.0,16828.0,0.0111]
[1672942344441,1.96732896,16830.0,16828.0,0.0111]
[1672942345180,0.3007,16829.0,16828.0,0.0111]
[1672942345376,0.4007,16829.0,16828.0,0.0111]
[1672942345796,0.4007,16829.0,16828.0,0.011]
[1672942346008,0.1,16829.0,16827.0,4.133e-05]
[1672942346216,0.139,16829.0,16828.0,0.009]
[1672942346540,0.4397,16829.0,16828.0,0.0091]
[1672942346748,0.4398,16829.0,16828.0,0.0091]
[1672942348846,1.0335,16829.0,16828.0,0.0091]
[1672942349585,0.9945,16829.0,16828.0,0.0001]
[1672942349794,1.1305,16829.0,16828.0,0.0031]
[1672942352954,0.8298,16829.0,16828.0,0.0031]
[1672942353159,1.1305,16829.0,16828.0,0.0031]
[1672942354525,0.8298,16829.0,16828.0,0.0031]
[1672942354734,1.1305,16829.0,16828.0,0.0031]
[1672942355369,2.06532896,16829.0,16828.0,0.0031]
[1672942355907,0.1,16828.0,16827.0,4.133e-05]
[1672942357153,0.236,16828.0,16827.0,0.00304133]
[1672942357471,0.8297,16828.0,16827.0,0.00304133]
[1672942357686,0.8297,16828.0,16827.0,0.00214133]
[1672942358530,0.8298,16828.0,16827.0,0.00214133]
[1672942358836,0.8298,16828.0,16827.0,0.00014133]
[1672942359056,0.8298,16828.0,16827.0,0.00214133]
[1672942360945,1.1305,16828.0,16827.0,0.00214133]
[1672942363679,0.8298,16828.0,16827.0,0.00214133]
[1672942363897,1.1305,16828.0,16827.0,0.00214133]
[1672942372607,0.8298,16828.0,16827.0,0.00214133]
[1672942372824,1.1305,16828.0,16827.0,0.00214133]
[1672942376396,0.8298,16828.0,16827.0,0.00214133]
[1672942376608,1.1305,16828.0,16827.0,0.00214133]
[1672942377020,0.8298,16828.0,16827.0,0.00214133]
[1672942377242,1.1305,16828.0,16827.0,0.00214133]
[1672942379872,0.8298,16828.0,16827.0,0.00214133]
[1672942380184,1.1305,16828.0,16827.0,0.00214133]
[1672942383223,0.8298,16828.0,16827.0,0.00214133]
[1672942383432,1.1305,16828.0,16827.0,0.00214133]
[1672942389015,2.06532896,16828.0,16827.0,0.00214133]
[1672942391958,2.06532896,16828.0,16823.0,0.3133]
[1672942391959,0.1,16827.0,16823.0,0.3133]
[1672942392168,0.3007,16825.0,16823.0,0.3133]
[1672942392482,0.1,16824.0,16822.0,0.3007]
[1672942392903,0.1,16824.0,16823.0,0.0021]
[1672942393429,0.105,16824.0,16823.0,0.0001]
[1672942393643,0.105,16824.0,16823.0,0.1]
[1672942393959,0.234,16824.0,16823.0,0.102]
[1672942394688,0.2341,16824.0,16823.0,0.102]
[1672942395108,0.234,16824.0,16823.0,0.002]
[1672942395314,0.234,16824.0,16823.0,0.102]
[1672942395525,0.234,16824.0,16823.0,0.0021]
[1672942395737,0.2341,16824.0,16823.0,0.0021]
[1672942405514,0.5348,16824.0,16823.0,0.0021]
[1672942412974,0.2341,16824.0,16823.0,0.0021]
[1672942413183,0.5348,16824.0,16823.0,0.0021]
[1672942415918,0.2341,16824.0,16823.0,0.0021]
[1672942416342,0.5348,16824.0,16823.0,0.0021]
[1672942426220,0.2341,16824.0,16823.0,0.0021]
[1672942426950,0.20471579,16824.0,16823.0,0.0021]
[1672942428330,0.20471579,16824.0,16823.0,0.3028]
[1672942432428,0.20471579,16824.0,16823.0,0.0021]
[1672942434528,0.20471579,16824.0,16823.0,0.3028]
[1672942446835,0.20471579,16824.0,16823.0,0.0021]
[1672942447038,0.20471579,16824.0,16823.0,0.3028]
[1672942448716,0.20471579,16824.0,16823.0,0.0021]
[1672942448931,0.20471579,16824.0,16823.0,0.3028]
[1672942450816,0.20471579,16824.0,16823.0,0.0021]
[1672942451036,0.20471579,16824.0,16823.0,0.3028]
[1672942451974,0.20471579,16824.0,16823.0,0.0021]
[1672942452509,0.20471579,16824.0,16823.0,0.3028]
[1672942464798,0.20471579,16824.0,16823.0,0.0021]
[1672942471840,0.20471579,16824.0,16823.0,0.0018813]
[1672942480240,0.50541579,16824.0,16823.0,0.0018813]
[1672942480447,0.20471579,16824.0,16823.0,0.0018813]
[1672942481707,0.20471579,16824.0,16823.0,0.0010813]
[1672942506107,0.20471579,16824.0,16823.0,0.3017813]
[1672942507682,0.20459163,16824.0,16823.0,0.3017813]
[1672942517252,0.20459163,16824.0,16823.0,0.0010813]
[1672942533961,0.20459163,16824.0,16823.0,0.3017813]
[1672942558995,0.20459163,16824.0,16823.0,0.30160669]
[1672942561095,0.20459163,16824.0,16823.0,0.00090669]
[1672942587917,0.20459163,16824.0,16823.0,0.30160669]
[1672942593798,0.1341,16824.0,16823.0,0.30160669]
[1672942611669,0.1341,16824.0,16823.0,0.3014239]
[1672942616918,0.1341,16824.0,16823.0,0.4014239]
[1672942619774,0.1341,16824.0,16823.0,0.7021239]
[1672942625661,0.1341,16824.0,16823.0,0.4014239]
[1672942647851,0.1341,16824.0,16823.0,0.7021239]
[1672942650584,0.1341,16824.0,16823.0,0.1007239]
[1672942650795,0.1341,16824.0,16823.0,0.7021239]
[1672942652159,0.1341,16824.0,16823.0,1.2958239]
[1672942655731,0.1341,16824.0,16823.0,1.2957432]
[1672942666141,0.1341,16824.0,16823.0,0.7020432]
[1672942666352,0.1341,16824.0,16823.0,1.2957432]
[1672942684218,0.0031,16824.0,16823.0,1.2982]
[1672942684433,0.0001,16824.0,16823.0,1.2952]
[1672942684644,0.0131,16824.0,16823.0,1.3312]
[1672942686954,0.393562,16829.0,16824.0,0.1]
[1672942687171,0.1,16829.0,16828.0,0.6014]
[1672942687583,0.1,16831.0,16828.0,0.6014]
[1672942687792,0.1,16831.0,16830.0,0.3007]
[1672942688852,0.234,16831.0,16830.0,0.3057]
[1672942710843,0.234,16831.0,16830.0,0.005]
[1672942711148,0.234,16831.0,16830.0,0.3057]
[1672942724919,0.234,16831.0,16830.0,0.6064]
[1672942725543,0.234,16831.0,16830.0,0.005]
[1672942725867,0.234,16831.0,16830.0,0.6064]
[1672942731963,0.134,16831.0,16830.0,0.6064]
[1672942734696,0.134,16831.0,16830.0,0.60626483]
[1672942739847,0.134,16831.0,16830.0,0.00486483]
[1672942740057,0.134,16831.0,16830.0,0.60626483]
[1672942762881,0.134,16831.0,16830.0,0.00486483]
[1672942763079,0.134,16831.0,16830.0,0.60626483]
[1672942765606,0.134,16831.0,16830.0,0.00486483]
[1672942765813,0.134,16831.0,16830.0,0.60626483]
[1672942774847,0.134,16831.0,16830.0,0.00486483]
[1672942775058,0.134,16831.0,16830.0,0.60626483]
[1672942784633,0.134,16831.0,16830.0,0.60604522]
[1672942792928,0.134,16831.0,16830.0,0.00464522]
[1672942793133,0.134,16831.0,16830.0,0.60604522]
[1672942807647,0.134,16831.0,16830.0,0.70604522]
[1672942808285,0.134,16831.0,16830.0,1.29974522]
[1672942812900,0.134,16831.0,16830.0,0.69834522]
[1672942813115,0.134,16831.0,16830.0,1.29974522]
[1672942814793,0.134,16831.0,16830.0,0.70604522]
[1672942816162,0.134,16831.0,16830.0,0.60604522]
[1672942819846,0.134,16831.0,16830.0,4.37604522]
[1672942820468,0.134,16831.0,16830.0,4.96974522]
[1672942821100,0.00162336,16831.0,16830.0,4.96974522]
[1672942821312,0.00162336,16831.0,16830.0,5.26974522]
[1672942822353,0.00162336,16831.0,16830.0,4.96974522]
[1672942822572,0.1,16836.0,16831.0,0.1]
[1672942822781,0.1,16836.0,16835.0,0.3007]
[1672942822988,0.1,16836.0,16835.0,0.4007]
[1672942823616,0.1,16836.0,16835.0,0.4117]
[1672942824460,0.1,16836.0,16835.0,0.3117]
[1672942824670,0.1,16836.0,16835.0,0.4117]
[1672942826455,0.1,16836.0,16835.0,0.3117]
[1672942827735,0.1,16838.0,16835.0,0.4117]
[1672942827944,0.1,16838.0,16836.0,0.1]
[1672942828995,0.1,16838.0,16837.0,0.3007]
[1672942829311,0.102,16838.0,16837.0,0.3007]
[1672942829729,0.1,16838.0,16837.0,0.3007]
[1672942829935,0.102,16838.0,16837.0,0.3117]
[1672942830251,0.102,16838.0,16837.0,0.011]
[1672942830467,0.102,16838.0,16837.0,0.3117]
[1672942832560,0.002,16838.0,16837.0,0.3117]
[1672942833617,0.1,16839.0,16838.0,0.1]
[1672942835295,0.102,16839.0,16838.0,0.111]
[1672942835507,0.1,16839.0,16838.0,0.1]
[1672942835717,0.102,16839.0,16838.0,0.111]
[1672942835927,0.002,16839.0,16838.0,0.111]
[1672942838137,0.3095,16840.0,16839.0,0.1]
[1672942838336,0.3095,16840.0,16839.0,0.9944]
[1672942839605,0.3095,16840.0,16839.0,0.9964]
[1672942840137,0.21264263,16840.0,16839.0,1.2964]
[1672942840336,0.20907958,16840.0,16839.0,1.2964]
[1672942840553,0.04007958,16840.0,16839.0,1.2964]
[1672942840971,0.3275,16846.0,16840.0,0.03999042]
[1672942841181,0.3275,16846.0,16845.0,0.6014]
[1672942841389,0.1,16848.0,16846.0,0.1]
[1672942841595,0.1,16848.0,16847.0,0.3007]
[1672942842869,0.1,16848.0,16847.0,0.3117]
[1672942843288,0.1,16848.0,16847.0,0.3107]
[1672942844971,0.39998344,16848.0,16847.0,0.01]
[1672942845385,0.00171436,16846.0,16845.0,0.3007]
[1672942846438,0.01071436,16846.0,16845.0,0.3097]
[1672942850740,0.01071436,16846.0,16845.0,0.009]